bitfinex-derivatives/quotes_ETHF0:USTF0_20241018
["timestamp","ask_amount","ask_price","bid_price","bid_amount"]
[1729233509054,0.38022,2630.7,2630.4,0.3902]
[1729233509263,3.92039,2631.2,2630.4,0.3902]
[1729233509456,0.38021,2630.8,2630.7,0.38021]
[1729233509650,3.7744,2631.2,2630.7,0.38021]
[1729233509861,0.38017,2631.0,2630.7,0.38022]
[1729233510052,0.3802,2630.9,2630.7,0.38022]
[1729233510452,0.3802,2630.8,2630.7,0.38022]
[1729233512462,12.7708,2630.8,2630.3,3.2078]
[1729233512666,0.38027,2630.4,2630.2,0.38028]
[1729233513065,0.38027,2630.3,2630.2,0.38028]
[1729233513762,0.38025,2630.5,2630.3,0.38027]
[1729233514771,0.38026,2630.4,2630.3,0.38027]
[1729233515065,0.38026,2630.5,2630.3,0.38027]
[1729233515258,0.38026,2630.4,2630.3,0.38027]
[1729233516157,0.79594,2630.6,2630.4,0.38025]
[1729233516358,0.38025,2630.5,2630.4,0.38025]
[1729233517256,0.417,2630.7,2630.3,0.38027]
[1729233517458,0.417,2630.7,2630.1,3.2078]
[1729233517663,0.38027,2630.4,2630.2,0.38029]
[1729233518263,0.38027,2630.4,2630.3,0.38027]
[1729233520958,3.387,2630.7,2630.2,0.42]
[1729233521457,0.38027,2630.4,2630.3,0.38027]
[1729233521869,3.387,2630.7,2630.2,0.42]
[1729233522467,0.38027,2630.4,2630.3,0.38027]
[1729233522771,3.387,2630.7,2630.2,0.42]
[1729233522965,0.38027,2630.4,2630.3,0.38027]
[1729233526164,3.387,2630.7,2630.2,0.42]
[1729233526565,2.97,2630.4,2630.1,3.2078]
[1729233526770,0.38029,2630.2,2630.1,3.2078]
[1729233528170,0.4262,2630.3,2630.1,3.2078]
[1729233528472,0.38028,2630.3,2630.2,0.38028]
[1729233528972,0.38027,2630.4,2630.1,3.2078]
[1729233529277,0.38027,2630.4,2630.3,0.38027]
[1729233541784,0.4151,2630.6,2630.0,3.6278]
[1729233541968,0.4151,2630.6,2630.0,4.57858]
[1729233542175,0.38026,2630.5,2630.4,0.38025]
[1729233542374,0.38027,2630.4,2630.3,0.38026]
[1729233543079,0.38027,2630.4,2630.3,3.58806]
[1729233543284,0.38027,2630.4,2630.3,3.2078]
[1729233543879,1.75027,2630.4,2630.3,3.2078]
[1729233544184,1.37,2630.4,2630.0,4.9978]
[1729233544478,1.7503,2630.1,2630.0,4.00811]
[1729233544689,1.37,2630.2,2630.0,4.9978]
[1729233544982,1.7503,2630.2,2630.1,1.37]
[1729233545579,1.7503,2630.2,2630.1,1.7503]
[1729233545885,1.7503,2630.2,2630.1,1.37]
[1729233546481,0.3803,2630.2,2630.1,1.37]
[1729233546678,0.3803,2630.2,2630.1,1.7503]
[1729233547083,0.3803,2630.2,2630.1,1.37]
[1729233547878,0.3803,2630.2,2630.1,1.7503]
[1729233548876,1.37,2630.2,2630.0,4.9978]
[1729233549083,1.7503,2630.1,2630.0,0.42]
[1729233549280,1.7503,2630.1,2630.0,0.80032]
[1729233549586,1.7503,2630.1,2630.0,2.17032]
[1729233549979,1.7503,2630.1,2630.0,1.79]
[1729233550483,1.7503,2630.1,2630.0,0.42]
[1729233550686,0.38035,2629.8,2629.7,3.58816]
[1729233550878,0.38035,2629.8,2629.7,4.95816]
[1729233552086,1.75035,2629.8,2629.7,4.5778]
[1729233552281,2.17515,2629.8,2629.7,4.5778]
[1729233553173,1.7948,2629.8,2629.4,4.5778]
[1729233553376,1.75039,2629.5,2629.4,4.5778]
[1729233553581,0.38039,2629.5,2629.4,4.5778]
[1729233553785,0.38039,2629.5,2629.4,4.9582]
[1729233553786,1.75039,2629.5,2629.4,4.9582]
[1729233555981,1.37,2629.5,2629.4,4.9582]
[1729233556182,0.38038,2629.6,2629.5,0.38039]
[1729233556183,1.37,2629.6,2629.5,0.38039]
[1729233556477,1.37,2629.6,2629.5,1.37]
[1729233556681,1.75039,2629.6,2629.5,1.37]
[1729233558387,1.75039,2629.6,2629.5,1.75039]
[1729233558582,1.7948,2629.8,2629.6,0.38036]
[1729233558784,2.98210468,2630.1,2629.7,1.37]
[1729233558993,1.75033,2630.0,2629.9,1.37]
[1729233559189,1.37,2630.0,2629.8,2.57024]
[1729233559488,1.75033,2629.9,2629.8,1.20024]
[1729233559889,1.75033,2629.9,2629.8,2.57025]
[1729233560890,1.75033,2629.9,2629.8,2.98045]
[1729233561886,1.75033,2629.9,2629.8,2.6001]
[1729233562086,0.38035,2629.8,2629.7,1.75036]
[1729233562287,1.75035,2629.8,2629.7,0.38036]
[1729233562694,1.75035,2629.8,2629.7,1.75036]
[1729233563786,1.37,2629.8,2629.7,1.75036]
[1729233565088,0.4118,2630.2,2629.7,1.37]
[1729233565284,0.4118,2630.2,2629.8,0.4044]
[1729233565490,0.38032,2630.0,2629.9,1.16953]
[1729233565696,1.75032,2630.0,2629.9,2.53953]
[1729233567283,1.75032,2630.0,2629.9,2.1592]
[1729233567795,1.75031,2630.1,2630.0,0.38032]
[1729233568595,1.75031,2630.1,2629.8,0.4044]
[1729233568596,2.74,2630.1,2629.8,0.4044]
[1729233568797,2.74,2630.1,2629.4,0.3804]
[1729233568798,11.72281962,2630.1,2629.4,0.3804]
[1729233569002,0.38039,2629.6,2629.4,0.3804]
[1729233569191,0.38037,2629.7,2629.3,1.2478]
[1729233569388,1.75037,2629.7,2629.5,4.95818]
[1729233569892,0.38038,2629.6,2629.5,4.95818]
[1729233570092,1.75038,2629.6,2629.5,3.58819]
[1729233570895,1.75038,2629.6,2629.5,3.2078]
[1729233571293,1.75038,2629.6,2629.5,3.58819]
[1729233572002,1.75038,2629.6,2629.5,3.2078]
[1729233572392,1.75038,2629.6,2629.5,3.58819]
[1729233572592,1.37,2629.6,2629.5,3.58819]
[1729233572900,1.75038,2629.6,2629.5,3.58819]
[1729233573096,1.75038,2629.6,2629.5,3.2078]
[1729233573603,1.75038,2629.6,2629.5,3.58819]
[1729233575998,1.75037,2629.7,2629.6,0.38038]
[1729233576590,0.4192,2629.9,2629.6,1.37]
[1729233576792,0.38033,2629.9,2629.8,1.75034]
[1729233577094,1.37,2630.0,2629.9,0.38033]
[1729233577292,1.37,2630.0,2629.9,1.20543]
[1729233577293,1.75032,2630.0,2629.9,1.20543]
[1729233577496,1.75032,2630.0,2629.9,0.8251]
[1729233577999,1.75032,2630.0,2629.9,1.20543]
[1729233578305,1.75032,2630.0,2629.9,0.8251]
[1729233578494,1.75032,2630.0,2629.9,1.20543]
[1729233579398,1.75032,2630.0,2629.9,0.8251]
[1729233579703,1.75032,2630.0,2629.9,1.20543]
[1729233580491,1.75032,2630.0,2629.9,0.8251]
[1729233581102,1.75032,2630.0,2629.9,1.20543]
[1729233582594,1.37,2630.0,2629.9,1.20543]
[1729233583808,1.7503,2630.2,2630.0,0.38032]
[1729233584005,1.7503,2630.2,2630.1,0.3803]
[1729233584307,1.37,2630.2,2630.1,0.3803]
[1729233584502,1.75029,2630.2,2630.1,0.3803]
[1729233584701,1.37,2630.2,2630.1,0.3803]
[1729233585101,1.37,2630.2,2630.1,3.5881]
[1729233585810,1.75028,2630.3,2630.2,0.38029]
[1729233586209,1.75028,2630.3,2630.2,0.77199]
[1729233587305,1.75028,2630.3,2630.2,0.3917]
[1729233588203,1.75028,2630.3,2630.2,0.77199]
[1729233588801,1.37,2630.3,2630.2,0.77199]
[1729233589009,1.37,2630.4,2630.2,1.7617]
[1729233589306,1.75022,2630.7,2630.6,0.38023]
[1729233589505,1.37,2630.7,2630.6,0.38023]
[1729233589905,3.58801,2630.8,2630.7,0.38022]
[1729233590211,0.38022,2630.7,2630.6,0.3963]
[1729233590400,1.75022,2630.7,2630.6,0.77653]
[1729233591400,1.37,2630.7,2630.3,3.2078]
[1729233591603,1.37,2630.4,2630.1,2.56149]
[1729233591801,1.37,2630.2,2630.1,2.56149]
[1729233594813,0.38028,2630.3,2630.2,0.38028]
[1729233595110,0.38028,2630.3,2630.2,1.75028]
[1729233595803,1.75027,2630.4,2630.3,0.38027]
[1729233596597,1.75027,2630.4,2630.3,1.75027]
[1729233597214,1.75027,2630.4,2630.3,1.37]
[1729233597405,1.75027,2630.4,2630.3,0.38027]
[1729233598109,0.38027,2630.3,2630.2,1.75028]
[1729233598411,1.37,2630.3,2630.2,1.75028]
[1729233600597,1.75029,2630.3,2630.2,0.38029]
[1729233600801,1.37,2630.3,2630.2,1.75029]
[1729233602207,1.75027,2630.3,2630.2,1.75029]
[1729233603304,1.37,2630.3,2630.2,1.75029]
[1729233603607,0.38029,2630.2,2630.1,5.76929]
[1729233603812,1.75028,2630.3,2630.2,0.38029]
[1729233605012,12.5416,2630.3,2629.4,3.2078]
[1729233605213,12.5416,2630.3,2629.3,0.98946298]
[1729233605214,0.95077,2630.1,2629.5,0.8214]
[1729233605409,1.75038,2629.6,2629.5,0.8214]
[1729233606209,0.38039,2629.5,2629.4,1.37]
[1729233606404,2.14969,2629.5,2629.4,1.37]
[1729233608603,1.7693,2629.5,2629.4,1.7504]
[1729233608801,0.38038,2629.6,2629.4,1.7504]
[1729233609007,1.75038,2629.6,2629.5,1.37]
[1729233609711,1.75038,2629.6,2629.5,1.75039]
[1729233609903,0.38042,2629.3,2629.2,3.2078]
[1729233610109,1.75042,2629.3,2629.2,3.2078]
[1729233610917,1.75042,2629.3,2629.2,3.58823]
[1729233611114,1.75042,2629.3,2629.2,3.2078]
[1729233611314,6.5432,2629.3,2628.8,0.4035]
[1729233611512,0.38048,2628.9,2628.8,0.4035]
[1729233612019,1.75048,2628.9,2628.8,0.4035]
[1729233612224,1.75048,2628.9,2628.7,1.7505]
[1729233612718,1.37,2628.9,2628.7,1.37]
[1729233613021,1.37,2628.9,2628.8,0.38049]
[1729233613513,1.75048,2628.9,2628.7,1.7505]
[1729233613914,1.37,2628.8,2628.7,1.7505]
[1729233615014,1.37,2628.8,2628.6,4.0603]
[1729233615319,0.38055,2628.4,2628.3,3.2078]
[1729233615515,1.75055,2628.4,2628.3,3.2078]
[1729233616517,1.37,2628.4,2628.3,3.2078]
[1729233616921,1.2293,2628.7,2628.3,3.2078]
[1729233616922,0.4134,2628.7,2628.3,8.3826]
[1729233617130,0.4134,2628.7,2628.6,1.75051]
[1729233617131,1.37,2628.7,2628.6,1.75051]
[1729233617319,1.37,2628.7,2628.6,0.38051]
[1729233617714,1.75051,2628.7,2628.6,0.3988]
[1729233618418,1.37,2628.7,2628.6,0.3988]
[1729233618821,1.75051,2628.7,2628.6,0.3988]
[1729233619220,1.75051,2628.7,2628.6,0.77932]
[1729233619626,1.75051,2628.7,2628.6,0.3988]
[1729233620329,1.75051,2628.7,2628.6,0.77932]
[1729233621633,1.37,2628.7,2628.6,0.77932]
[1729233622027,1.75051,2628.7,2628.6,0.3988]
[1729233622426,1.75051,2628.7,2628.6,0.77932]
[1729233622735,0.3995,2629.0,2628.6,1.7688]
[1729233622924,1.37,2628.8,2628.6,1.7688]
[1729233623125,1.37,2628.8,2628.7,0.38051]
[1729233623535,1.37,2628.8,2628.6,4.9766]
[1729233623733,1.37,2628.8,2628.7,0.38051]
[1729233623921,0.38044,2629.2,2629.0,0.38046]
[1729233624125,0.38044,2629.2,2629.1,0.7922]
[1729233624126,0.38043,2629.2,2629.1,0.7922]
[1729233624328,1.75043,2629.2,2629.1,0.7922]
[1729233624927,1.75043,2629.2,2629.1,0.3892]
[1729233625340,1.37,2629.2,2629.1,0.76965]
[1729233625523,3.2078,2629.8,2629.1,5.5624]
[1729233625722,1.37,2629.5,2629.4,0.3804]
[1729233627233,1.7504,2629.5,2629.4,0.3804]
[1729233627440,0.3804,2629.4,2629.3,3.2078]
[1729233627736,1.37,2629.4,2629.3,3.58822]
[1729233628339,1.7504,2629.4,2629.3,3.2078]
[1729233629034,1.7504,2629.4,2629.3,0.38042]
[1729233630444,1.37,2629.4,2629.3,0.38042]
[1729233631746,1.7504,2629.4,2629.3,0.38042]
[1729233635841,1.37,2629.4,2629.3,0.38042]
[1729233636037,1.7504,2629.5,2629.2,4.9767]
[1729233636234,0.4076,2629.8,2629.2,4.9767]
[1729233636235,0.38038,2629.7,2629.5,0.38038]
[1729233636438,0.38038,2629.7,2629.6,0.3911]
[1729233636634,1.75038,2629.7,2629.6,0.3911]
[1729233636839,1.37,2629.7,2629.6,0.3911]
[1729233637047,1.37,2629.7,2629.6,0.77148]
[1729233637548,1.37,2629.7,2629.6,2.14148]
[1729233638347,0.78795,2629.8,2629.7,0.38036]
[1729233638547,1.7776,2629.8,2629.7,0.81186]
[1729233639046,2.15795,2629.8,2629.7,0.81186]
[1729233639348,3.2078,2630.4,2629.7,4.2339]
[1729233639550,3.2078,2630.4,2630.1,1.7503]
[1729233639551,1.75029,2630.2,2630.1,1.7503]
[1729233639742,1.75029,2630.2,2630.1,0.3803]
[1729233639948,1.37,2630.2,2630.1,0.3803]
[1729233640253,1.37,2630.2,2630.1,0.7997]
[1729233640450,0.4101,2630.4,2630.1,1.7894]
[1729233640749,1.37,2630.4,2630.3,0.38027]
[1729233640952,1.75027,2630.4,2630.1,4.9972]
[1729233641149,0.38027,2630.4,2630.3,0.38027]
[1729233641453,1.75027,2630.4,2630.3,0.38027]
[1729233641855,1.37,2630.4,2630.1,4.9972]
[1729233642057,1.37,2630.4,2630.3,0.38027]
[1729233642352,0.4101,2630.7,2630.5,0.38024]
[1729233642353,2.16032,2630.7,2630.5,0.38024]
[1729233642553,1.37,2630.6,2630.5,1.75024]
[1729233642763,1.37,2630.6,2630.5,2.16314]
[1729233643049,1.37,2630.6,2630.5,2.57164]
[1729233644345,1.75023,2630.6,2630.5,1.20164]
[1729233647946,1.75023,2630.6,2630.5,0.8214]
[1729233648554,1.75023,2630.6,2630.5,1.20165]
[1729233649654,1.75023,2630.6,2630.5,0.8214]
[1729233650250,1.75023,2630.6,2630.5,1.20165]
[1729233651155,1.37,2630.6,2630.5,1.20165]
[1729233651357,1.37,2630.7,2630.6,0.38023]
[1729233651658,1.37,2630.7,2630.6,1.75023]
[1729233652055,1.75021,2630.8,2630.7,0.38022]
[1729233652262,1.37,2630.8,2630.7,0.38022]
[1729233652858,1.37,2630.8,2630.5,0.8214]
[1729233653061,1.37,2630.8,2630.7,1.75022]
[1729233653360,1.7502,2630.8,2630.7,1.75022]
[1729233653760,3.5971,2631.0,2630.9,0.38019]
[1729233653959,40.8,2631.4,2631.2,0.38014]
[1729233654262,1.37,2631.6,2631.3,2.59742]
[1729233654460,0.38011,2631.5,2631.4,1.37]
[1729233654764,41.18011,2631.5,2631.4,1.37]
[1729233654953,42.55011,2631.5,2631.4,1.37]
[1729233655154,1.75011,2631.5,2631.4,1.37]
[1729233655460,0.8148,2631.8,2631.4,1.37]
[1729233655767,0.8148,2631.8,2631.5,0.38009]
[1729233655768,41.18008,2631.7,2631.5,0.38009]
[1729233655968,41.18008,2631.7,2631.6,1.75009]
[1729233656169,0.38008,2631.7,2631.6,1.75009]
[1729233656354,0.4027,2632.2,2631.6,2.74]
[1729233656560,0.4027,2632.2,2631.3,1.8393]
[1729233656561,0.38005,2631.9,2631.8,3.2078]
[1729233656861,0.38005,2631.9,2631.6,1.75008]
[1729233656862,0.38007,2631.8,2631.6,1.75008]
[1729233657050,0.38007,2631.7,2631.6,1.75008]
[1729233657254,1.37,2631.8,2631.6,1.75008]
[1729233657460,1.75007,2631.8,2631.7,1.37]
[1729233657855,0.38007,2631.8,2631.6,0.38008]
[1729233658158,0.38007,2631.7,2631.5,3.5879]
[1729233658866,0.38007,2631.8,2631.5,3.5879]
[1729233659363,0.38007,2631.7,2631.5,3.5879]
[1729233659561,40.8,2632.1,2631.5,3.2078]
[1729233659762,0.3801,2631.6,2631.3,1.22742]
[1729233659957,3.92008,2632.0,2631.3,1.22742]
[1729233660158,0.95012,2631.9,2631.3,0.8473]
[1729233660360,0.95012,2631.9,2631.3,0.4213]
[1729233660361,0.38012,2631.4,2631.3,0.4213]
[1729233660555,6.9997,2631.8,2631.1,3.2078]
[1729233660860,0.38014,2631.2,2631.1,3.2078]
[1729233661369,13.0086,2631.2,2630.3,6.1778]
[1729233661563,0.38025,2630.5,2630.3,3.2078]
[1729233661865,40.8,2630.4,2630.2,0.38028]
[1729233662062,6.5893,2630.9,2630.1,2.97]
[1729233662262,0.38028,2630.3,2630.0,4.00561]
[1729233663367,0.38028,2630.3,2630.0,3.6253]
[1729233663866,0.38028,2630.3,2630.0,4.00561]
[1729233664458,0.38028,2630.3,2630.1,0.3803]
[1729233664661,0.839,2630.5,2630.0,4.00561]
[1729233664867,0.38028,2630.3,2630.0,4.00561]
[1729233665058,0.38029,2630.2,2630.0,4.00561]
[1729233665365,0.38027,2630.4,2630.1,0.3803]
[1729233665566,0.839,2630.5,2630.1,0.3803]
[1729233665766,0.38028,2630.3,2630.1,0.3803]
[1729233666467,0.839,2630.5,2630.1,0.3803]
[1729233666468,0.38027,2630.4,2630.1,0.3803]
[1729233666660,0.839,2630.5,2630.0,0.4175]
[1729233666864,0.38027,2630.4,2630.1,0.38029]
[1729233667369,0.38028,2630.3,2630.1,0.38029]
[1729233667664,0.839,2630.5,2630.1,0.38029]
[1729233667964,0.38027,2630.4,2630.1,0.38029]
[1729233668667,0.839,2630.5,2630.1,0.38029]
[1729233668862,0.38027,2630.4,2630.1,0.38029]
[1729233669759,4.15833,2630.8,2630.1,2.97]
[1729233669760,3.2078,2630.8,2630.1,2.97]
[1729233669961,0.38025,2630.6,2630.4,0.38026]
[1729233671165,0.38026,2630.5,2630.3,0.78737]
[1729233671775,44.0078,2630.8,2630.3,0.78737]
[1729233671979,44.0078,2630.8,2630.3,0.4071]
[1729233672176,0.38026,2630.4,2630.3,0.4071]
[1729233672375,0.38025,2630.5,2630.3,0.78737]
[1729233674566,0.38026,2630.4,2630.3,0.4071]
[1729233675063,0.38026,2630.4,2630.3,0.78737]
[1729233675671,0.38026,2630.4,2630.3,0.4071]
[1729233676270,0.38026,2630.4,2630.3,0.78737]
[1729233676470,44.0078,2630.8,2630.3,0.78737]
[1729233676471,44.0078,2630.8,2630.3,0.4071]
[1729233676873,0.38026,2630.4,2630.3,0.78737]
[1729233677074,0.38026,2630.4,2630.3,0.4071]
[1729233677469,0.38026,2630.4,2630.3,0.78737]
[1729233677968,44.0078,2630.8,2630.0,4.00561]
[1729233677969,0.3803,2630.2,2630.0,4.00561]
[1729233678167,0.3803,2630.1,2630.0,3.2078]
[1729233678374,2.97,2630.3,2629.7,0.80995]
[1729233678375,0.38034,2629.9,2629.7,0.80995]
[1729233678676,0.38035,2629.8,2629.7,0.80995]
[1729233678975,0.38035,2629.8,2629.7,0.4296]
[1729233679271,1.76605,2630.2,2629.2,3.962]
[1729233679272,0.9508,2630.0,2629.2,3.962]
[1729233679479,0.3804,2629.5,2629.3,1.23101]
[1729233679776,0.9508,2630.0,2629.4,0.3804]
[1729233679777,0.38038,2629.6,2629.4,0.3804]
[1729233680477,6.1778,2630.1,2629.3,4.0584]
[1729233680979,0.38037,2629.7,2629.3,4.0584]
[1729233681173,0.38038,2629.6,2629.5,0.38039]
[1729233681572,6.1778,2630.1,2629.5,0.38039]
[1729233681573,0.38037,2629.7,2629.5,0.38039]
[1729233682072,6.1778,2630.1,2629.3,4.0584]
[1729233682373,0.38036,2629.7,2629.3,4.0584]
[1729233682574,0.38036,2629.7,2629.6,0.38038]
[1729233682771,6.1778,2630.1,2629.6,0.38038]
[1729233683173,0.38035,2629.8,2629.6,0.38038]
[1729233683676,6.1778,2630.1,2629.6,0.38038]
[1729233683881,0.38036,2629.8,2629.6,0.38038]
[1729233684276,0.38037,2629.7,2629.3,4.0584]
[1729233684577,0.38038,2629.6,2629.4,0.3804]
[1729233684969,0.38038,2629.6,2629.3,4.0584]
[1729233685282,0.38038,2629.6,2629.5,0.38039]
[1729233685976,2.97,2630.1,2629.5,0.38039]
[1729233685977,0.38037,2629.7,2629.5,0.38039]
[1729233686279,0.38038,2629.6,2629.5,0.38039]
[1729233686670,0.3804,2629.4,2629.3,4.43881]
[1729233686885,0.3804,2629.5,2629.3,4.43881]
[1729233687078,0.3804,2629.4,2629.3,4.43882]
[1729233687279,0.3804,2629.4,2629.3,4.0584]
[1729233687776,0.3804,2629.4,2629.3,3.6374]
[1729233687975,0.3804,2629.4,2629.3,3.2078]
[1729233693187,0.3804,2629.4,2629.2,6.55823]
[1729233693786,0.3804,2629.4,2629.3,0.38042]
[1729233693984,0.8365,2629.7,2629.2,6.1778]
[1729233694181,0.38039,2629.5,2629.4,0.3804]
[1729233694380,0.8365,2629.7,2629.3,0.38041]
[1729233694583,0.3804,2629.5,2629.3,0.38041]
[1729233695684,0.8365,2629.7,2629.2,3.58823]
[1729233696187,0.38042,2629.3,2629.2,3.58823]
[1729233696386,0.38038,2629.6,2629.3,0.38042]
[1729233696579,0.4198,2629.7,2629.3,3.35041]
[1729233696889,0.38042,2629.3,2629.2,3.58823]
[1729233697479,0.38041,2629.4,2629.2,3.58823]
[1729233697878,0.38041,2629.4,2629.2,0.38043]
[1729233698189,0.38041,2629.4,2629.2,3.58823]
[1729233698391,0.4198,2629.7,2629.2,3.58823]
[1729233698589,0.38042,2629.3,2629.2,3.58823]
[1729233698890,0.4198,2629.7,2629.2,3.58823]
[1729233699084,0.38042,2629.4,2629.2,3.58823]
[1729233699588,0.4198,2629.7,2629.2,3.58823]
[1729233699787,0.38042,2629.3,2629.2,3.58823]
[1729233700088,0.4198,2629.7,2629.2,3.58823]
[1729233700089,0.38042,2629.4,2629.2,3.58823]
[1729233700389,0.38042,2629.4,2629.3,0.38042]
[1729233700894,0.38042,2629.4,2629.2,3.58823]
[1729233701087,0.38042,2629.4,2629.3,0.38042]
[1729233701285,0.3804,2629.5,2629.4,0.3804]
[1729233701791,0.4198,2629.7,2629.4,0.3804]
[1729233701990,0.4198,2629.7,2629.2,3.2078]
[1729233702182,0.38041,2629.4,2629.3,0.38042]
[1729233702390,0.3804,2629.5,2629.3,0.38042]
[1729233704191,0.38038,2629.6,2629.4,0.3804]
[1729233704691,0.38039,2629.5,2629.4,0.3804]
[1729233705385,0.38039,2629.5,2629.3,0.38041]
[1729233706002,1.75039,2629.5,2629.4,1.7865]
[1729233706381,1.75039,2629.5,2629.4,2.1669]
[1729233706682,1.7898,2629.7,2629.4,1.7865]
[1729233706880,1.75038,2629.6,2629.5,1.75039]
[1729233707087,1.75038,2629.6,2629.5,0.78629]
[1729233707794,0.38046,2629.0,2628.9,0.398]
[1729233707982,0.38046,2629.0,2628.9,1.20068]
[1729233708182,1.75046,2629.0,2628.9,0.8202]
[1729233708382,1.75046,2629.0,2628.9,0.4222]
[1729233708788,1.37,2629.1,2628.9,1.7922]
[1729233708988,1.75045,2629.1,2629.0,1.37]
[1729233709290,0.38045,2629.2,2629.0,1.37]
[1729233709498,1.75045,2629.2,2629.1,1.37]
[1729233709697,1.37,2629.2,2629.1,1.37]
[1729233709901,0.78623,2629.3,2629.1,0.79405]
[1729233710089,0.4058,2629.3,2629.2,0.38043]
[1729233710399,0.4058,2629.3,2628.9,0.4222]
[1729233710400,0.38046,2629.0,2628.9,0.4222]
[1729233710603,0.38048,2628.9,2628.8,3.2078]
[1729233711096,0.38048,2628.9,2628.2,0.27539092]
[1729233711097,12.774,2628.9,2628.2,0.27539092]
[1729233711395,2.97,2628.7,2628.3,0.3945]
[1729233711595,0.38054,2628.5,2628.3,0.77506]
[1729233713592,0.38055,2628.4,2628.3,0.3945]
[1729233713791,0.38054,2628.5,2628.3,0.77506]
[1729233714393,0.38055,2628.4,2628.3,0.3945]
[1729233714592,0.38054,2628.5,2628.3,0.77506]
[1729233716791,2.97,2628.6,2628.3,0.3945]
[1729233717497,0.38054,2628.5,2628.3,0.3945]
[1729233717699,0.38054,2628.5,2628.3,0.77506]
[1729233718403,2.97,2628.6,2628.3,0.3945]
[1729233718594,0.38055,2628.5,2628.3,0.77506]
[1729233719194,2.97,2628.6,2628.3,0.3945]
[1729233719400,3.7754,2628.4,2628.1,4.011]
[1729233719596,0.38058,2628.2,2628.1,4.011]
[1729233719801,0.38057,2628.3,2628.1,4.39159]
[1729233720291,0.38058,2628.2,2628.1,4.011]
[1729233720493,0.38057,2628.3,2628.1,4.39159]
[1729233721011,0.38058,2628.2,2628.1,4.39159]
[1729233721202,2.97,2628.2,2627.8,0.3956]
[1729233721392,0.38062,2627.9,2627.8,0.3956]
[1729233722705,2.97,2628.0,2627.8,0.77624]
[1729233722706,3.35062,2628.0,2627.8,0.77624]
[1729233722895,0.38062,2627.9,2627.8,0.3956]
[1729233723400,2.97,2628.0,2627.7,0.422]
[1729233723595,0.18912795,2628.3,2627.5,0.8252]
[1729233723596,3.3882,2627.8,2627.5,0.8252]
[1729233723800,0.38065,2627.7,2627.6,0.38066]
[1729233724002,0.38065,2627.7,2627.5,1.63687]
[1729233724300,3.76884,2627.8,2627.6,0.38066]
[1729233724603,3.76884,2627.8,2627.7,0.38065]
[1729233724809,2.97,2627.8,2627.5,1.2562]
[1729233724995,0.38059,2628.2,2627.7,3.2078]
[1729233725201,0.38066,2627.7,2627.5,1.63687]
[1729233725404,3.35064,2627.8,2627.6,0.38066]
[1729233726495,0.38066,2627.7,2627.5,1.63687]
[1729233727200,3.35064,2627.8,2627.6,0.38066]
[1729233727502,0.38066,2627.7,2627.5,1.63687]
[1729233727705,0.38066,2627.7,2627.6,0.38067]
[1729233728521,0.38066,2627.7,2627.5,1.63687]
[1729233728699,3.35065,2627.8,2627.6,0.38066]
[1729233729209,0.38065,2627.7,2627.6,0.38066]
[1729233729508,3.35064,2627.8,2627.6,0.38066]
[1729233730705,3.3882,2627.9,2627.5,1.2562]
[1729233730908,3.3882,2627.9,2627.8,0.38064]
[1729233731406,2.97,2627.9,2627.8,0.38064]
[1729233733507,3.35062,2627.9,2627.8,0.38064]
[1729233733702,2.97,2627.9,2627.8,0.38064]
[1729233736603,6.1778,2628.3,2627.8,3.8056]
[1729233736809,0.38058,2628.2,2628.1,0.38059]
[1729233737306,6.1778,2628.3,2628.0,0.8032]
[1729233737512,0.38058,2628.2,2628.1,0.38059]
[1729233737707,3.35058,2628.2,2628.1,0.38059]
[1729233738006,2.97,2628.2,2628.0,0.8032]
[1729233738212,3.35059,2628.2,2628.1,0.38059]
[1729233738809,3.35058,2628.2,2628.1,0.38059]
[1729233739006,2.97,2628.2,2628.1,0.38059]
[1729233739209,3.35058,2628.2,2628.1,0.38059]
[1729233739899,0.4106,2628.5,2628.0,0.8032]
[1729233740100,3.611,2628.7,2628.1,3.2078]
[1729233740305,3.611,2628.7,2628.0,1.7547]
[1729233740306,0.4299,2628.8,2628.6,0.38052]
[1729233740507,1.37,2628.7,2628.6,0.38052]
[1729233741315,0.38047,2629.0,2628.6,1.37]
[1729233741504,1.37,2628.7,2628.6,1.75052]
[1729233741700,1.37,2628.7,2628.6,0.38052]
[1729233742006,1.37,2628.7,2628.6,4.18452]
[1729233742912,40.8,2629.1,2629.0,0.38046]
[1729233743111,1.37,2629.1,2629.0,0.38046]
[1729233743717,1.37,2629.1,2629.0,0.77526]
[1729233744016,0.38043,2629.2,2629.1,0.38044]
[1729233744408,43.77,2629.3,2629.1,0.38044]
[1729233744611,2.97,2629.3,2629.0,0.3948]
[1729233744812,2.97,2629.3,2629.2,0.38043]
[1729233745717,40.8,2629.4,2629.3,0.38042]
[1729233746716,3.3504,2629.5,2629.3,0.38042]
[1729233747107,0.38042,2629.3,2629.2,3.2078]
[1729233747408,0.38051,2628.7,2628.5,0.38053]
[1729233747614,0.38051,2628.7,2628.4,3.58834]
[1729233747615,0.38053,2628.6,2628.4,3.58834]